bitfinex/quotes_ETHUSD_20250411
["timestamp","ask_amount","ask_price","bid_price","bid_amount"]
[1744344040521,6.47927,1543.4,1543.2,2.35066594]
[1744344040823,6.47927,1543.4,1543.3,0.96278072]
[1744344042166,0.8028,1543.7,1543.3,0.96278072]
[1744344042366,6.4784,1543.6,1543.3,8.23703072]
[1744344042571,6.4784,1543.6,1543.4,0.96278072]
[1744344042799,12.95699,1543.6,1543.4,0.96278072]
[1744344043017,6.4784,1543.6,1543.5,0.60188492]
[1744344043173,13.75896,1543.7,1543.5,0.60188492]
[1744344043370,13.75896,1543.7,1543.6,0.96278072]
[1744344043870,7.28082,1543.7,1543.6,0.3608958]
[1744344044270,13.75908,1543.7,1543.5,0.3608958]
[1744344044504,6.47836,1543.6,1543.5,0.3608958]
[1744344044801,7.28082,1543.7,1543.5,0.9622811]
[1744344044965,0.8028,1543.7,1543.5,0.9622811]
[1744344045171,0.8028,1543.9,1543.5,1.3961853]
[1744344045376,0.8028,1543.9,1543.6,0.6013853]
[1744344045377,7.28003,1543.9,1543.6,0.6013853]
[1744344045586,7.28003,1543.9,1543.6,2.03672983]
[1744344045800,13.75734,1543.9,1543.7,0.6013853]
[1744344046202,7.28003,1543.9,1543.6,1.43534453]
[1744344046797,6.47723,1543.9,1543.6,7.91365453]
[1744344046997,6.47723,1543.9,1543.7,1.3920388]
[1744344047199,13.9281,1544.1,1543.7,8.06378545]
[1744344047576,7.2791,1544.1,1543.7,14.54151545]
[1744344047771,7.37806,1544.4,1544.0,7.27134]
[1744344047966,6.47569,1544.3,1544.0,0.7948]
[1744344048671,6.47589,1544.2,1544.0,0.7948]
[1744344049506,6.47548,1544.3,1544.0,0.7948]
[1744344050177,7.37786,1544.4,1544.0,7.27143]
[1744344050384,0.1,1544.4,1544.1,6.47623]
[1744344050579,0.1,1544.4,1544.2,7.123393]
[1744344050782,0.1,1544.4,1544.3,0.7948]
[1744344051187,0.1,1544.4,1544.3,7.27022]
[1744344051592,0.1,1544.4,1544.3,7.82022]
[1744344052095,0.1,1544.4,1544.3,14.97500304]
[1744344052275,0.1,1544.4,1544.3,17.18483164]
[1744344052475,0.1,1544.4,1544.3,16.58768583]
[1744344053492,0.1,1544.4,1544.3,10.11226583]
[1744344053700,0.1,1544.4,1544.3,13.82785723]
[1744344053899,0.1,1544.4,1544.3,17.27479916]
[1744344054206,0.1,1544.4,1544.3,20.27479916]
[1744344054401,0.1,1544.4,1544.3,20.87038716]
[1744344054607,0.1,1544.4,1544.3,17.97344523]
[1744344054816,0.1,1544.4,1544.3,21.42038225]
[1744344055379,6.575,1544.4,1544.3,4.04252502]
[1744344055713,0.1,1544.4,1544.3,0.7948]
[1744344056176,0.1,1544.4,1544.2,6.26849451]
[1744344056788,0.1,1544.4,1544.3,6.47542]
[1744344056983,0.1,1544.4,1544.2,16.13384569]
[1744344057207,0.1,1544.4,1544.3,6.47542]
[1744344057413,0.1,1544.4,1544.3,8.73634657]
[1744344061382,0.1,1544.4,1544.3,2.26092657]
[1744344062814,0.9315,1544.4,1544.2,1.14037225]
[1744344063038,7.4065,1544.4,1544.2,1.14037225]
[1744344063186,0.9315,1544.4,1544.2,1.14037225]
[1744344065801,7.40651,1544.4,1544.2,1.14037225]
[1744344066003,6.47566,1544.3,1543.9,7.25978]
[1744344066308,6.47566,1544.3,1543.9,6.4769]
[1744344066515,6.47566,1544.3,1544.0,6.47667]
[1744344067712,6.47566,1544.3,1543.9,12.9538]
[1744344067914,6.47566,1544.3,1543.9,15.88695419]
[1744344068425,6.47566,1544.3,1543.9,6.4769]
[1744344068426,0.8315,1544.2,1543.9,6.4769]
[1744344068719,7.3075,1544.2,1543.9,6.4769]
[1744344068920,0.8315,1544.2,1543.8,0.47942567]
[1744344069128,13.78693,1543.8,1543.5,18.30687151]
[1744344069288,7.30905,1543.8,1543.5,11.30479151]
[1744344069486,0.8315,1543.8,1543.6,1.13047915]
[1744344069893,6.47713,1543.9,1543.6,7.60869915]
[1744344070320,7.30736,1544.2,1543.8,6.47726]
[1744344070496,6.47712,1543.9,1543.6,0.48529897]
[1744344070825,7.30903,1543.8,1543.5,4.82607151]
[1744344071019,7.30905,1543.8,1543.5,12.39328866]
[1744344071221,7.30905,1543.8,1543.5,5.91467866]
[1744344071720,7.30905,1543.8,1543.5,12.39345866]
[1744344072295,7.30905,1543.8,1543.5,7.56738715]
[1744344072502,0.8315,1543.8,1543.5,14.04600715]
[1744344072721,0.8315,1543.8,1543.5,7.56722715]
[1744344072924,0.8315,1543.8,1543.5,14.04578715]
[1744344073122,0.8315,1543.8,1543.6,6.47815]
[1744344073317,7.30641,1543.9,1543.6,7.88272872]
[1744344073627,7.30641,1543.9,1543.6,6.47815]
[1744344075332,0.8293,1543.9,1543.6,6.47815]
[1744344075922,0.8293,1543.9,1543.6,12.95633]
[1744344076226,0.8293,1543.9,1543.6,6.47815]
[1744344076422,7.30643,1543.9,1543.6,6.47815]
[1744344076741,0.8293,1543.9,1543.6,14.43962572]
[1744344076941,7.30564,1544.1,1543.7,12.95555]
[1744344077234,7.30564,1544.1,1543.7,13.74325]
[1744344077406,7.30564,1544.1,1543.8,6.47749]
[1744344077608,7.3056,1544.1,1543.7,0.7877]
[1744344077812,6.47685,1544.0,1543.7,7.26547]
[1744344078025,6.47612,1544.2,1543.8,10.10087893]
[1744344078209,6.4755,1544.3,1543.9,7.26453]
[1744344078410,6.4755,1544.3,1543.9,13.74144]
[1744344078628,6.4755,1544.3,1544.0,0.59686269]
[1744344078833,6.4755,1544.3,1544.0,8.98753933]
[1744344079032,6.4755,1544.3,1544.0,8.39067664]
[1744344080411,6.57504,1544.4,1544.1,0.7877]
[1744344080763,0.1,1544.4,1544.3,6.47542]
[1744344081356,0.1,1544.4,1544.3,7.26312]
[1744344081650,0.1,1544.4,1544.3,8.57363121]
[1744344082053,0.1,1544.4,1544.3,9.17000897]
[1744344082556,0.1,1544.4,1544.3,9.52785428]
[1744344083259,0.1,1544.4,1544.3,3.05243428]
[1744344085538,0.1,1544.4,1544.3,10.07785428]
[1744344085852,0.1,1544.4,1544.3,3.60243428]
[1744344086523,0.1,1544.4,1544.3,3.05243428]
[1744344088250,0.1,1544.4,1544.3,9.52785428]
[1744344088950,0.1,1544.4,1544.3,2.26473428]
[1744344089447,6.575,1544.4,1544.3,0.95422307]
[1744344089659,7.3666,1544.4,1544.3,0.35784531]
[1744344089813,6.4771,1543.9,1543.8,6.06]
[1744344090013,6.47752,1543.8,1543.7,6.23321488]
[1744344090212,6.47752,1543.8,1543.7,7.51973637]
[1744344090443,6.47752,1543.8,1543.7,6.23321488]
[1744344091052,7.26912,1543.8,1543.7,6.23321488]
[1744344093027,12.9564,1543.7,1543.4,11.333089]
[1744344093232,6.47819,1543.7,1543.4,8.273089]
[1744344093533,12.95639,1543.7,1543.5,0.8273089]
[1744344093731,6.47836,1543.6,1543.4,8.273089]
[1744344094968,12.95613,1543.7,1543.4,8.273089]
[1744344095668,6.47856,1543.6,1543.4,5.273089]
[1744344095879,6.47878,1543.5,1543.4,4.78187689]
[1744344096665,6.47878,1543.5,1543.3,3.0]
[1744344096866,6.47878,1543.5,1543.3,5.08936969]
[1744344097370,12.95715,1543.6,1543.3,5.08936969]
[1744344097567,0.7916,1543.8,1543.3,5.08936969]
[1744344097568,6.47798,1543.7,1543.3,5.08936969]
[1744344097745,13.74682,1543.8,1543.4,7.85989294]
[1744344098135,13.74682,1543.8,1543.4,7.26266]
[1744344098331,13.74682,1543.8,1543.4,9.14580397]
[1744344098547,6.47796,1543.7,1543.4,9.14580397]
[1744344098753,12.95617,1543.7,1543.4,2.66674397]
[1744344098950,12.95617,1543.7,1543.4,3.15551859]
[1744344099163,6.47796,1543.7,1543.4,3.15551859]
[1744344099361,6.47796,1543.7,1543.4,9.63452859]
[1744344099566,6.47796,1543.7,1543.5,0.96345286]
[1744344099803,7.26913,1543.8,1543.5,0.96345286]
[1744344099960,6.47687,1544.0,1543.6,6.47818]
[1744344100487,6.47711,1543.9,1543.6,6.47818]
[1744344100664,12.9539,1544.0,1543.6,6.47818]
[1744344100850,12.9539,1544.0,1543.7,0.647818]
[1744344101271,6.4773,1543.9,1543.5,7.44217286]
[1744344101580,6.4773,1543.9,1543.6,0.95470584]
[1744344101781,6.47758,1543.8,1543.6,0.95470584]
[1744344101981,6.4773,1543.9,1543.6,0.95470584]
[1744344102154,12.95468,1543.9,1543.5,7.44202286]
[1744344102483,12.95462,1543.9,1543.6,0.74420229]
[1744344102864,6.47718,1543.9,1543.4,7.93739548]
[1744344103064,7.29458,1543.8,1543.4,14.41656548]
[1744344103259,7.29458,1543.8,1543.5,0.95489293]
[1744344103657,13.77244,1543.8,1543.5,0.95489293]
[1744344103859,13.77244,1543.8,1543.4,14.41646548]
[1744344104088,13.77244,1543.8,1543.5,1.44164655]
[1744344105159,6.47813,1543.7,1543.5,1.44164655]
[1744344105393,6.47859,1543.6,1543.4,7.93739548]
[1744344105702,6.47878,1543.5,1543.4,5.27065151]
[1744344108277,6.47859,1543.6,1543.4,5.27065151]
[1744344108479,6.47859,1543.6,1543.3,6.06]
[1744344108480,12.9572,1543.6,1543.3,4.78187689]
[1744344108676,6.47882,1543.5,1543.3,4.78187689]
[1744344108877,12.95794,1543.5,1543.3,4.78187689]
[1744344109266,12.95781,1543.5,1543.3,4.78187689]
[1744344109464,7.2684,1543.4,1543.3,4.78187689]
[1744344109819,7.27008,1543.0,1542.9,6.23321488]
[1744344110669,10.16702193,1543.0,1542.9,6.23321488]
[1744344110873,7.27092,1542.8,1542.7,4.88e-06]
[1744344111076,11.54310093,1542.8,1542.7,4.88e-06]
[1744344112398,8.646159,1542.8,1542.7,4.88e-06]
[1744344112596,7.27092,1542.8,1542.7,4.88e-06]
[1744344116296,7.27092,1542.8,1542.2,6.48422]
[1744344116297,6.48256,1542.6,1542.2,6.48422]
[1744344117328,6.48256,1542.6,1542.2,6.48409]
[1744344117507,6.48256,1542.6,1542.2,6.48406]
[1744344117807,6.48323,1542.5,1542.2,1.38284843]
[1744344118295,12.96556,1542.6,1542.2,7.86705843]
[1744344118497,6.48263,1542.6,1542.2,7.86689843]
[1744344119512,12.96542,1542.6,1542.2,7.86689843]
[1744344119881,6.48263,1542.6,1542.2,7.86689843]
[1744344120109,6.48263,1542.6,1542.3,0.78668984]
[1744344120308,6.48217,1542.7,1542.3,7.27036984]
[1744344120615,12.96455,1542.7,1542.3,7.27036984]
[1744344120817,12.96467,1542.7,1542.3,7.27036984]
[1744344121724,0.8079,1542.8,1542.4,7.26384]
[1744344121905,6.4815,1542.9,1542.5,7.209204]
[1744344122098,6.48091,1543.0,1542.6,6.48234]
[1744344122284,19.59029,1543.1,1542.7,7.2627]
[1744344122683,13.10952,1543.1,1542.7,7.2627]
[1744344122907,19.5902,1543.1,1542.7,7.2627]
[1744344123184,6.48093,1543.0,1542.7,8.637204]
[1744344123384,6.48093,1543.0,1542.7,2.155204]
[1744344123613,6.4797,1543.3,1542.9,6.48129]
[1744344123818,12.95959,1543.3,1542.9,6.48129]
[1744344124323,6.48012,1543.2,1542.8,13.4597097]
[1744344124479,6.48012,1543.2,1542.8,15.52633606]
[1744344126081,6.48012,1543.2,1542.8,9.04475606]
[1744344126283,6.48053,1543.1,1542.8,2.56317606]
[1744344126504,12.96136,1543.1,1542.8,2.06662636]
[1744344127093,6.48053,1543.1,1542.8,2.06662636]
[1744344127295,12.9613,1543.1,1542.7,8.637134]
[1744344128214,6.48006,1543.2,1542.8,6.4817]
[1744344128421,6.48006,1543.2,1542.8,6.48154]
[1744344128718,6.48006,1543.2,1542.8,6.96479355]
[1744344128915,6.48006,1543.2,1542.8,6.96478355]
[1744344129103,6.47968,1543.3,1542.9,7.17763836]
[1744344129282,6.47968,1543.3,1542.9,13.65871836]
[1744344130483,6.47968,1543.3,1542.9,7.17755836]
[1744344130684,12.95953,1543.3,1542.9,7.17755836]
[1744344131420,12.95952,1543.3,1542.9,7.17755836]
[1744344131618,12.95958,1543.3,1542.9,7.17755836]
[1744344132009,6.48005,1543.2,1542.9,7.17755836]
[1744344132209,6.48005,1543.2,1542.9,6.48108]
[1744344132408,6.4805,1543.1,1542.8,6.96203745]
[1744344132717,6.48005,1543.2,1542.8,0.48038745]
[1744344132718,12.96048,1543.2,1542.8,0.48038745]
[1744344132932,12.96048,1543.2,1542.8,6.4815]
[1744344134822,6.48046,1543.1,1542.8,6.4815]
[1744344136097,6.48046,1543.1,1542.8,6.969434]
[1744344136434,6.48046,1543.1,1542.9,0.95624972]
[1744344136833,6.48046,1543.1,1542.9,0.35856544]
[1744344139535,12.96113,1543.1,1542.9,0.35856544]
[1744344140047,6.48088,1543.0,1542.9,0.35856544]
[1744344140337,7.23888,1543.0,1542.9,0.35856544]
[1744344140923,6.48193,1542.8,1542.5,13.88922]
[1744344141099,6.48193,1542.8,1542.6,0.59905893]
[1744344141303,12.96306,1542.9,1542.6,0.59905893]
[1744344141500,6.48047,1543.1,1542.7,0.7784]
[1744344141707,13.71659,1543.4,1542.9,0.7784]
[1744344141907,12.95859,1543.4,1543.0,7.07977893]
[1744344142108,12.95859,1543.4,1543.1,0.35909404]
[1744344142303,6.47925,1543.4,1543.2,0.7784]
[1744344142503,7.774631,1543.5,1543.2,0.7784]
[1744344142504,6.47885,1543.5,1543.2,0.7784]
[1744344142708,6.47885,1543.5,1543.2,7.25841]
[1744344143210,6.47797,1543.7,1543.3,6.47953]
[1744344143404,6.47759,1543.8,1543.4,6.47901]
[1744344143633,6.47716,1543.9,1543.5,7.25701]
[1744344144519,6.47768,1543.8,1543.5,0.7784]
[1744344145440,12.95557,1543.8,1543.5,0.7784]
[1744344145742,6.47796,1543.7,1543.5,0.7784]
[1744344146811,12.95618,1543.7,1543.5,0.7784]
[1744344147546,6.47796,1543.7,1543.5,0.7784]
[1744344148349,12.95621,1543.7,1543.5,0.7784]
[1744344148517,6.47836,1543.6,1543.5,0.7784]
[1744344149646,6.47836,1543.6,1543.4,0.48963297]
[1744344149845,6.47836,1543.6,1543.4,0.7322733]
[1744344150651,12.95701,1543.6,1543.4,0.7322733]
[1744344150950,6.47836,1543.6,1543.4,0.7322733]
[1744344151110,6.47836,1543.6,1543.4,1.21568994]
[1744344151111,12.95698,1543.6,1543.4,1.21568994]
[1744344151311,6.47805,1543.7,1543.4,1.21568994]
[1744344151507,12.95555,1543.8,1543.4,7.69472994]
[1744344151748,12.95558,1543.8,1543.5,1.36757691]
[1744344152044,12.95558,1543.8,1543.5,0.76947299]
[1744344152227,12.95556,1543.8,1543.5,0.76947299]
[1744344152638,12.95627,1543.7,1543.5,0.76947299]
[1744344152808,6.47794,1543.7,1543.4,1.21568994]
[1744344153212,12.95615,1543.7,1543.4,1.21568994]
[1744344153412,12.95615,1543.7,1543.5,0.59810922]
[1744344154043,6.47836,1543.6,1543.4,1.21568994]
[1744344154549,6.47794,1543.7,1543.4,1.21568994]
[1744344155052,6.47859,1543.6,1543.4,1.21568994]
[1744344155211,6.47904,1543.5,1543.3,6.8331]
[1744344155615,6.4792,1543.4,1543.3,6.8331]
[1744344155841,6.4792,1543.4,1543.3,7.43153376]
[1744344156041,6.4792,1543.4,1543.3,6.65843376]
[1744344156427,6.4792,1543.4,1543.3,6.06]
[1744344156626,7.853624,1543.4,1543.3,6.06]
[1744344157147,6.47976,1543.3,1543.1,0.7731]
[1744344157524,6.47976,1543.3,1543.0,3.0]
[1744344158320,6.47841,1543.6,1543.2,7.25293]
[1744344158725,6.478,1543.7,1543.3,6.47945]
[1744344158928,6.478,1543.7,1543.5,0.7731]
[1744344159130,6.47759,1543.8,1543.5,0.7731]
[1744344161343,6.47759,1543.8,1543.5,7.25178]
[1744344162649,6.47759,1543.8,1543.5,0.7731]
[1744344162650,6.47795,1543.7,1543.5,0.7731]
[1744344162952,6.47568243,1543.7,1543.5,0.7731]
[1744344163361,12.95545,1543.8,1543.5,0.7731]
[1744344163522,6.47759,1543.8,1543.5,0.7731]
[1744344163952,6.47802,1543.7,1543.4,0.47893942]
[1744344164155,6.47841,1543.6,1543.3,13.35994]
[1744344164356,6.47841,1543.6,1543.4,0.59802422]
[1744344164539,6.47802,1543.7,1543.4,0.59802422]
[1744344165530,6.47755,1543.8,1543.4,7.56743968]
[1744344165738,6.47755,1543.8,1543.4,9.01222365]
[1744344166055,6.47813,1543.7,1543.4,1.93513943]
[1744344166559,12.95547,1543.8,1543.4,8.41433943]
[1744344166722,6.47661,1544.1,1543.6,3.71734193]
[1744344166923,7.24266,1544.2,1543.8,6.47738]
[1744344167331,7.34168,1544.4,1544.0,6.47664]
[1744344167621,13.81698,1544.4,1544.0,6.47664]
[1744344168159,0.1,1544.4,1544.1,6.47626]
[1744344168359,0.1,1544.4,1544.2,7.29608]
[1744344170029,0.1,1544.4,1544.2,0.8204]
[1744344170521,6.57517,1544.4,1544.2,0.8204]
[1744344170959,6.57517,1544.4,1544.1,0.49472371]
[1744344171140,15.122081,1544.4,1544.0,13.92292]
[1744344171329,0.8666,1544.4,1544.0,3.8204]
[1744344171532,7.34175,1544.4,1544.1,0.5968664]
[1744344172167,13.81704,1544.4,1544.1,0.5968664]
[1744344172333,12.95105,1544.3,1544.1,0.5968664]
[1744344172676,6.47584,1544.2,1544.1,0.5968664]
[1744344173026,6.47675,1544.0,1543.7,3.0]
[1744344173239,12.95366,1544.0,1543.8,0.35821321]
[1744344173564,6.4771,1543.9,1543.8,0.35821321]
[1744344174064,6.47759,1543.8,1543.4,8.74434397]
[1744344174245,6.47759,1543.8,1543.5,0.8744344]
[1744344174632,6.4771,1543.9,1543.5,6.47876]
[1744344174837,6.4777,1543.8,1543.4,18.22321397]
[1744344175244,6.4777,1543.8,1543.5,0.59738489]
[1744344176168,6.4777,1543.8,1543.5,1.08073106]
[1744344176464,6.4777,1543.8,1543.5,0.59738489]
[1744344176657,12.95547,1543.8,1543.4,11.74422397]
[1744344176858,6.47769,1543.8,1543.5,0.35840723]
[1744344177067,6.47836,1543.6,1543.5,0.35840723]
[1744344177773,6.47836,1543.6,1543.3,3.35840723]
[1744344178332,6.47836,1543.6,1543.3,3.0]
[1744344179270,6.47962,1543.3,1543.0,0.8204]
[1744344179465,6.48032,1543.2,1542.9,6.06]
[1744344179674,6.48063,1543.1,1542.8,0.8204]
[1744344179887,6.48063,1543.1,1542.8,9.128108]
[1744344180080,6.48063,1543.1,1542.9,0.59800098]
[1744344180367,6.48088,1543.0,1542.8,0.59800098]
[1744344180780,6.4813,1542.9,1542.8,0.59800098]
[1744344181072,6.48215,1542.7,1542.5,0.59800098]
[1744344181577,0.7666,1542.9,1542.5,0.4418401]
[1744344181784,0.7666,1543.1,1542.5,6.9246201]
[1744344181989,6.48155,1542.9,1542.5,6.9246201]
[1744344182285,6.48102,1543.0,1542.6,6.48237]
[1744344182446,7.24713,1543.1,1542.7,6.48174]
[1744344182447,0.7666,1543.1,1542.7,6.48174]
[1744344182786,6.4813,1542.9,1542.6,3.0]
[1744344183283,6.48093,1543.0,1542.6,3.0]
[1744344183779,6.48134,1542.9,1542.6,3.0]
[1744344184481,6.48134,1542.9,1542.6,9.48249]
[1744344184669,6.48093,1543.0,1542.6,9.48249]
[1744344184893,6.48093,1543.0,1542.6,11.12319901]
[1744344185853,6.48134,1542.9,1542.6,11.12319901]
[1744344186054,6.48134,1542.9,1542.6,4.64070901]
[1744344186288,6.48088,1543.0,1542.4,13.36377]
[1744344186478,6.48216,1542.7,1542.4,7.30377]
[1744344187385,6.48309,1542.5,1542.2,0.8204]
[1744344187749,6.48214,1542.7,1542.2,0.8204]
[1744344187972,6.48436,1542.2,1542.0,0.8204]
[1744344188757,6.48493,1542.1,1541.8,13.5024]
[1744344188985,6.48493,1542.1,1541.8,9.441271]
[1744344189187,6.48366,1542.4,1542.0,6.48501]
[1744344189391,6.48366,1542.4,1542.1,6.48465]
[1744344189859,6.48366,1542.4,1542.0,12.96978]
[1744344190485,6.48387,1542.3,1541.9,9.48549]
[1744344190693,6.48387,1542.3,1541.9,10.7707561]
[1744344190894,7.3896,1542.5,1541.9,4.2854761]
[1744344191106,12.96901,1542.2,1541.9,3.0]
[1744344191258,12.96901,1542.2,1541.9,9.48548]
[1744344191259,6.4844,1542.2,1541.9,9.48548]
[1744344191607,6.48433,1542.2,1541.9,3.0]
[1744344191977,6.48525,1542.0,1541.8,0.8204]
[1744344192304,0.7562,1542.1,1541.6,14.39731139]
[1744344192458,6.48514,1542.0,1541.7,6.48619]
[1744344192798,6.4856,1541.9,1541.6,14.39731139]
[1744344192999,6.48514,1542.0,1541.6,23.87830953]
[1744344193710,6.48514,1542.0,1541.6,17.39169953]
[1744344193859,6.48617,1541.8,1541.5,3.0]
[1744344194059,6.48655,1541.7,1541.4,13.4755]
[1744344194259,6.48655,1541.7,1541.4,7.4155]
[1744344194472,6.48682,1541.6,1541.4,7.4155]
[1744344194722,6.48682,1541.6,1541.2,7.27988]
[1744344195002,6.48682,1541.6,1541.2,9.92511]
[1744344195364,12.97381,1541.6,1541.2,9.92511]
[1744344195611,6.48817,1541.3,1541.0,7.68847023]
[1744344195967,6.48765,1541.4,1541.0,6.48925]
[1744344196175,6.48929,1541.0,1540.9,0.7915]
[1744344196509,6.48929,1541.0,1540.7,6.06]
[1744344196510,7.24375,1541.5,1540.7,13.83367208]
[1744344196663,0.7562,1541.5,1540.8,1.38336721]
[1744344196864,6.48811,1541.3,1540.9,6.48956]
[1744344197068,6.48811,1541.3,1541.0,6.48927]
[1744344197504,6.48762,1541.4,1541.0,6.48927]
[1744344197805,14.348607,1541.4,1541.0,6.48927]
[1744344198103,14.348607,1541.4,1540.8,1.38336721]
[1744344198104,6.48824,1541.3,1540.8,1.38336721]
[1744344198277,6.48824,1541.3,1540.9,6.48942]
[1744344198604,1.373107,1541.4,1541.1,6.48876]
[1744344198903,7.24342,1541.5,1541.1,6.48876]
[1744344199068,8.61644,1541.5,1541.1,6.48876]
[1744344199269,2.12922,1541.5,1541.2,6.48839]
[1744344199594,1.37302,1541.5,1541.2,6.48839]
[1744344200603,1.37302,1541.5,1541.2,6.48824]
[1744344200805,0.7562,1541.7,1541.1,3.0]
[1744344201018,7.24144,1542.0,1541.5,6.48717]
[1744344201179,7.24144,1542.0,1541.6,0.7915]
[1744344201919,13.72679,1542.0,1541.6,7.27811]
[1744344202619,7.24144,1542.0,1541.6,7.27803]
[1744344202826,20.50602141,1542.0,1541.6,7.27803]
[1744344203409,14.02064141,1542.0,1541.6,7.27803]
[1744344203781,6.48593,1541.8,1541.4,13.7664]
[1744344204123,6.48593,1541.8,1541.4,13.7663]
[1744344204421,6.48593,1541.8,1541.4,15.74893]
[1744344204600,6.48593,1541.8,1541.5,6.48705]
[1744344204988,12.97209,1541.8,1541.4,9.2615]
[1744344205323,6.48593,1541.8,1541.4,9.2615]
[1744344205676,6.48593,1541.8,1541.4,7.27887]
[1744344205877,6.48593,1541.8,1541.4,13.76633]
[1744344206421,12.9721,1541.8,1541.4,7.27887]
[1744344206720,6.48593,1541.8,1541.4,7.27887]
[1744344206923,12.97208,1541.8,1541.4,7.27887]
[1744344207128,12.97208,1541.8,1541.4,8.70366853]
[1744344207624,6.48593,1541.8,1541.4,8.70366853]
[1744344207922,12.97221,1541.8,1541.4,8.70366853]
[1744344208121,6.48593,1541.8,1541.4,8.70366853]
[1744344208319,6.98552,1541.9,1541.5,6.48688]
[1744344208626,0.5,1541.9,1541.6,6.48672]
[1744344208833,0.5,1541.9,1541.7,6.48618]
[1744344208981,6.48528,1542.0,1541.6,6.48672]
[1744344209422,6.48528,1542.0,1541.5,6.48701]
[1744344209423,6.48545,1542.0,1541.5,6.48701]
[1744344209633,6.48575,1541.9,1541.5,6.48701]
[1744344209782,12.9715,1541.9,1541.5,6.48701]
[1744344210083,6.48575,1541.9,1541.5,6.48701]
[1744344210425,6.48574,1541.9,1541.5,6.48701]
[1744344210726,6.48571,1541.9,1541.5,6.48701]
[1744344211026,6.48571,1541.9,1541.5,12.97399]
[1744344211557,6.48571,1541.9,1541.5,12.97398]
[1744344211709,6.48571,1541.9,1541.6,6.48661]
[1744344212137,12.97142,1541.9,1541.6,6.48661]
[1744344212658,6.48571,1541.9,1541.6,6.48661]
[1744344213455,6.48571,1541.9,1541.5,12.97398]
[1744344213652,6.48516,1542.0,1541.6,6.48651]
[1744344213952,6.48516,1542.0,1541.5,2.282548]
[1744344213953,6.48569,1541.9,1541.5,15.256788]
[1744344214451,6.48569,1541.9,1541.6,7.08727669]
[1744344214652,6.48569,1541.9,1541.6,6.48667]
[1744344214859,6.48607,1541.8,1541.5,5.282548]
[1744344215061,6.48607,1541.8,1541.5,11.769718]
[1744344215355,6.48607,1541.8,1541.5,9.48717]
[1744344215517,6.48607,1541.8,1541.6,0.60122784]
[1744344217550,12.9722,1541.8,1541.6,0.60122784]
[1744344217724,6.48634,1541.7,1541.6,0.60122784]
[1744344218146,6.48676,1541.6,1541.5,0.60122784]
[1744344218616,6.48637,1541.7,1541.2,0.60122784]
[1744344218812,7.135817,1541.6,1541.2,0.60122784]
[1744344219011,6.48718,1541.6,1541.3,7.08916784]
[1744344219212,6.4864,1541.7,1541.3,7.45080904]
[1744344219526,12.97308,1541.7,1541.4,0.60122784]
[1744344219964,12.97308,1541.7,1541.3,6.8495512]
[1744344219965,6.48678,1541.6,1541.5,0.60122784]
[1744344220152,6.4864,1541.7,1541.5,0.60122784]
[1744344220328,12.97314,1541.7,1541.6,0.3616912]
[1744344220519,7.783714,1541.7,1541.6,0.96291904]
[1744344220720,6.4864,1541.7,1541.6,0.96291904]
[1744344220914,6.48609,1541.8,1541.6,0.96291904]
[1744344221163,12.97048,1542.0,1541.7,0.3616912]
[1744344221327,12.97052,1542.0,1541.7,1.1340912]
[1744344221529,12.97049,1542.0,1541.8,0.60122784]
[1744344221736,0.7784,1542.3,1542.1,6.48456]
[1744344222041,1.387262,1542.4,1542.1,6.48448]
[1744344222236,1.387262,1542.4,1542.2,0.96291904]
[1744344222761,7.4044,1542.5,1542.2,6.8457012]
[1744344222919,13.88755,1542.5,1542.3,0.3616912]
[1744344223120,6.48345,1542.4,1542.3,0.3616912]
[1744344223759,12.96709,1542.4,1542.2,0.3616912]
[1744344224265,13.88759,1542.5,1542.2,0.3616912]
[1744344224468,7.26058,1542.7,1542.2,6.8457612]
[1744344224630,1.504458,1542.7,1542.4,6.48323]
[1744344224836,7.986748,1542.7,1542.3,14.34642567]
[1744344225031,1.504458,1542.7,1542.4,6.48334]
[1744344225233,0.7784,1542.7,1542.5,6.48295]
[1744344225436,6.625,1542.8,1542.5,12.96572]
[1744344225661,75.97545,1543.0,1542.6,6.48238]
[1744344225967,6.48143,1542.9,1542.5,6.48277]
[1744344226341,6.48143,1542.9,1542.6,0.3606474]
[1744344226847,6.48143,1542.9,1542.6,6.8431674]
[1744344227062,6.48143,1542.9,1542.5,6.48277]
[1744344227367,12.96298,1542.9,1542.6,0.60098912]
[1744344227662,6.48143,1542.9,1542.6,0.60098912]
[1744344228363,6.48143,1542.9,1542.5,6.48276]
[1744344228572,12.96308,1542.9,1542.5,6.48276]
[1744344229078,13.88448,1543.0,1542.6,6.48235]
[1744344229427,20.36559,1543.0,1542.6,6.48235]
[1744344229672,6.4813,1542.9,1542.6,6.48235]
[1744344230173,6.4819,1542.8,1542.5,1.34528875]
[1744344230374,6.4819,1542.8,1542.3,0.777]
[1744344230375,7.4034,1543.0,1542.3,7.26064]
[1744344230521,0.7784,1542.8,1542.4,0.36070683]
[1744344230727,6.48298,1542.5,1542.4,0.96161679]
[1744344231261,6.48298,1542.5,1542.4,0.36070683]
[1744344231427,6.48298,1542.5,1542.2,6.84494683]
[1744344231633,6.48298,1542.5,1542.2,7.44641066]
[1744344231835,6.48298,1542.5,1542.3,0.60146383]
[1744344232254,6.48298,1542.5,1542.2,6.48424]
[1744344232453,6.48298,1542.5,1542.1,17.23333022]
[1744344232643,6.48298,1542.5,1542.2,7.08576342]
[1744344233047,6.48381,1542.4,1542.1,3.777]
[1744344233993,6.48364,1542.4,1542.1,3.777]
[1744344234493,13.74463,1542.5,1542.1,10.26152]
[1744344235290,13.10263,1542.6,1542.2,6.48422]
[1744344235486,13.10263,1542.6,1542.2,7.55841394]
[1744344236182,13.10263,1542.6,1542.3,6.48367]